[Event "*** Titled Tuesday 3|2 Blitz"]
[Site "Chess.com"]
[Date "2016.07.05"]
[Round "1"]
[White "daro94"]
[Black "ZEN-22"]
[Result "1-0"]
[WhiteElo "2629"]
[BlackElo "2329"]
[TimeControl "180+2"]
[EndTime "11:06:28 PDT"]
[Termination "daro94 won by resignation"]

1. d4 {[%clk 0:03:00.3]} 1... c5 {[%clk 0:02:59.8]} 2. d5 {[%clk 0:03:01.3]}
2... e6 {[%clk 0:03:00.8]} 3. Nc3 {[%clk 0:03:02.6]} 3... b5 {[%clk 0:03:01.7]}
4. Nxb5 {[%clk 0:03:00]} 4... Qa5+ {[%clk 0:03:02.5]} 5. Nc3 {[%clk 0:03:01.2]}
5... exd5 {[%clk 0:03:03.9]} 6. Qxd5 {[%clk 0:02:58.7]} 6... Nc6 {[%clk
0:03:04.9]} 7. Qd1 {[%clk 0:02:35.7]} 7... Nf6 {[%clk 0:03:03.7]} 8. Nf3 {[%clk
0:02:34.7]} 8... Ne4 {[%clk 0:03:02.8]} 9. Bd2 {[%clk 0:02:35.1]} 9... Nxd2
{[%clk 0:03:03.8]} 10. Nxd2 {[%clk 0:02:35.1]} 10... Rb8 {[%clk 0:03:05.7]} 11.
Nc4 {[%clk 0:02:31.1]} 11... Qc7 {[%clk 0:03:06.5]} 12. Nd5 {[%clk 0:02:30.1]}
12... Qd8 {[%clk 0:03:05.6]} 13. e4 {[%clk 0:02:29.5]} 13... Ba6 {[%clk
0:03:06.1]} 14. b3 {[%clk 0:02:24.3]} 14... Bxc4 {[%clk 0:03:03.5]} 15. Bxc4
{[%clk 0:02:26.2]} 15... Bd6 {[%clk 0:03:04.2]} 16. O-O {[%clk 0:02:23.5]} 16...
O-O {[%clk 0:03:04.2]} 17. f4 {[%clk 0:02:24.3]} 17... Na5 {[%clk 0:02:42.9]}
18. Qd3 {[%clk 0:02:19.5]} 18... Nxc4 {[%clk 0:02:43.2]} 19. Qxc4 {[%clk
0:02:19.3]} 19... Re8 {[%clk 0:02:44.6]} 20. Rad1 {[%clk 0:02:06.6]} 20... Bf8
{[%clk 0:02:36.5]} 21. Kh1 {[%clk 0:01:55.8]} 21... Re6 {[%clk 0:02:33.5]} 22.
c3 {[%clk 0:01:37]} 22... Rh6 {[%clk 0:02:25.8]} 23. Qd3 {[%clk 0:01:28.8]}
23... Qh4 {[%clk 0:02:21.3]} 24. h3 {[%clk 0:01:27.5]} 24... Re8 {[%clk
0:02:21.9]} 25. Qf3 {[%clk 0:01:25.2]} 25... d6 {[%clk 0:02:07.4]} 26. c4 {[%clk
0:01:14.7]} 26... Rhe6 {[%clk 0:02:07.4]} 27. Nc7 {[%clk 0:01:14.3]} 27... Rxe4
{[%clk 0:02:07.8]} 28. Nxe8 {[%clk 0:01:15.4]} 28... Rxe8 {[%clk 0:02:09.7]} 29.
Qf2 {[%clk 0:01:15.3]} 29... Qf6 {[%clk 0:02:10]} 30. Rfe1 {[%clk 0:01:16.3]}
30... Rd8 {[%clk 0:02:10.5]} 31. Qf3 {[%clk 0:01:16.5]} 31... g6 {[%clk
0:02:11.5]} 32. Re2 {[%clk 0:01:17.1]} 32... Bh6 {[%clk 0:02:04.4]} 33. g3
{[%clk 0:01:17.9]} 33... g5 {[%clk 0:02:01]} 34. Rde1 {[%clk 0:01:13]} 34...
gxf4 {[%clk 0:02:01.1]} 35. Re8+ {[%clk 0:01:12.2]} 35... Rxe8 {[%clk
0:02:01.7]} 36. Rxe8+ {[%clk 0:01:14.1]} 36... Bf8 {[%clk 0:01:59.3]} 37. Qg4+
{[%clk 0:01:15.1]} 37... Qg6 {[%clk 0:01:58.6]} 38. gxf4 {[%clk 0:01:14.1]}
38... Kg7 {[%clk 0:01:57.9]} 39. Ra8 {[%clk 0:01:11.2]} 39... Be7 {[%clk
0:01:54.4]} 40. Rxa7 {[%clk 0:01:10.9]} 40... Kf6 {[%clk 0:01:53.4]} 41. Qh4+
{[%clk 0:01:06.9]} 41... Kf5 {[%clk 0:01:53.6]} 42. Rxe7 {[%clk 0:01:04.4]} 1-0

[Event "*** Titled Tuesday 3|2 Blitz"]
[Site "Chess.com"]
[Date "2016.07.05"]
[Round "1"]
[White "eltenedor"]
[Black "cabalista"]
[Result "0-1"]
[WhiteElo "2023"]
[BlackElo "2422"]
[TimeControl "180+2"]
[EndTime "11:06:34 PDT"]
[Termination "cabalista won by resignation"]

1. c4 {[%clk 0:02:57.9]} 1... g6 {[%clk 0:02:21.3]} 2. g3 {[%clk 0:02:48.5]}
2... Bg7 {[%clk 0:02:20.7]} 3. Bg2 {[%clk 0:02:49.4]} 3... d6 {[%clk 0:02:22.6]}
4. Nc3 {[%clk 0:02:49.5]} 4... e5 {[%clk 0:02:23]} 5. e3 {[%clk 0:02:50.3]} 5...
f5 {[%clk 0:02:22.8]} 6. Nge2 {[%clk 0:02:51.1]} 6... Nf6 {[%clk 0:02:22.7]} 7.
d3 {[%clk 0:02:51.5]} 7... O-O {[%clk 0:02:21.6]} 8. O-O {[%clk 0:02:52.6]} 8...
c6 {[%clk 0:02:22]} 9. f4 {[%clk 0:02:48.7]} 9... Na6 {[%clk 0:02:17.6]} 10. Rb1
{[%clk 0:02:37.5]} 10... Qe7 {[%clk 0:02:17.7]} 11. h3 {[%clk 0:02:32.1]} 11...
Nc7 {[%clk 0:02:16.5]} 12. b4 {[%clk 0:02:05.6]} 12... a6 {[%clk 0:02:15.9]} 13.
a4 {[%clk 0:02:02.5]} 13... Nh5 {[%clk 0:02:14.3]} 14. Kh2 {[%clk 0:01:48.2]}
14... g5 {[%clk 0:02:08.5]} 15. Qd2 {[%clk 0:01:33.8]} 15... gxf4 {[%clk
0:02:04.5]} 16. exf4 {[%clk 0:01:21.8]} 16... Rf6 {[%clk 0:01:48.8]} 17. Bf3
{[%clk 0:01:01.2]} 17... Rh6 {[%clk 0:01:46.6]} 18. Kg2 {[%clk 0:00:43.8]} 18...
exf4 {[%clk 0:01:36.9]} 19. Nxf4 {[%clk 0:00:35]} 19... Nxf4+ {[%clk 0:01:36.8]}
20. Qxf4 {[%clk 0:00:36]} 20... Ne6 {[%clk 0:01:34.2]} 21. Qd2 {[%clk
0:00:28.9]} 21... f4 {[%clk 0:01:17.4]} 22. Re1 {[%clk 0:00:18.9]} 22... Qg5
{[%clk 0:01:13.8]} 23. Qf2 {[%clk 0:00:16.6]} 23... Bxc3 {[%clk 0:01:12.7]} 0-1

[Event "*** Titled Tuesday 3|2 Blitz"]
[Site "Chess.com"]
[Date "2016.07.05"]
[Round "1"]
[White "alturas_pacificas"]
[Black "Gabrielian_Artur"]
[Result "0-1"]
[WhiteElo "2155"]
[BlackElo "2498"]
[TimeControl "180+2"]
[EndTime "11:06:52 PDT"]
[Termination "Gabrielian_Artur won by resignation"]

1. d4 {[%clk 0:03:00.1]} 1... Nf6 {[%clk 0:03:00]} 2. Bf4 {[%clk 0:03:00.4]}
2... g6 {[%clk 0:03:00.7]} 3. e3 {[%clk 0:03:01.3]} 3... Bg7 {[%clk 0:03:02]} 4.
Be2 {[%clk 0:03:02.8]} 4... O-O {[%clk 0:03:02.9]} 5. Nf3 {[%clk 0:03:04.3]}
5... d6 {[%clk 0:03:04.3]} 6. O-O {[%clk 0:03:05.9]} 6... Nbd7 {[%clk
0:03:05.2]} 7. h3 {[%clk 0:03:06.1]} 7... b6 {[%clk 0:03:06.5]} 8. a4 {[%clk
0:03:04.3]} 8... a6 {[%clk 0:03:06.2]} 9. Nc3 {[%clk 0:03:04.9]} 9... Bb7 {[%clk
0:03:07.2]} 10. Qd3 {[%clk 0:02:56.1]} 10... Re8 {[%clk 0:03:07.4]} 11. e4
{[%clk 0:02:56.7]} 11... e5 {[%clk 0:03:07.8]} 12. dxe5 {[%clk 0:02:53.3]} 12...
Nc5 {[%clk 0:02:53.3]} 13. Qc4 {[%clk 0:01:51.7]} 13... Nfxe4 {[%clk 0:02:44.2]}
14. Nxe4 {[%clk 0:01:34.1]} 14... Nxe4 {[%clk 0:02:45.2]} 15. exd6 {[%clk
0:01:30.2]} 15... Nxd6 {[%clk 0:02:44.2]} 16. Bxd6 {[%clk 0:01:17.3]} 16... Qxd6
{[%clk 0:02:44.6]} 17. Qd3 {[%clk 0:01:18.8]} 17... Qf4 {[%clk 0:02:37.7]} 18.
Rae1 {[%clk 0:00:55.6]} 18... Bxb2 {[%clk 0:02:20.9]} 19. Qb3 {[%clk 0:00:57]}
19... Bg7 {[%clk 0:02:17.5]} 20. Bc4 {[%clk 0:00:57.9]} 20... h6 {[%clk
0:02:02.4]} 21. Bd5 {[%clk 0:00:53.4]} 21... c6 {[%clk 0:01:56.7]} 22. Bc4
{[%clk 0:00:50.1]} 22... b5 {[%clk 0:01:58]} 23. Bd3 {[%clk 0:00:50.1]} 23...
Kh7 {[%clk 0:01:45.4]} 24. h4 {[%clk 0:00:33.9]} 24... Kh8 {[%clk 0:01:31.5]}
25. h5 {[%clk 0:00:23.7]} 25... g5 {[%clk 0:01:32]} 26. c4 {[%clk 0:00:10.8]}
26... g4 {[%clk 0:01:32.2]} 27. Nh2 {[%clk 0:00:06.4]} 27... Bd4 {[%clk
0:01:32.8]} 28. cxb5 {[%clk 0:00:06.5]} 28... Rxe1 {[%clk 0:01:31.1]} 0-1

[Event "*** Titled Tuesday 3|2 Blitz"]
[Site "Chess.com"]
[Date "2016.07.05"]
[Round "1"]
[White "CraiggoryC"]
[Black "Frolyanov_D"]
[Result "0-1"]
[WhiteElo "2064"]
[BlackElo "2442"]
[TimeControl "180+2"]
[EndTime "11:07:05 PDT"]
[Termination "Frolyanov_D won by resignation"]

1. e4 {[%clk 0:02:58.1]} 1... e5 {[%clk 0:03:00.2]} 2. Nf3 {[%clk 0:02:58.1]}
2... Nf6 {[%clk 0:03:00.9]} 3. Nc3 {[%clk 0:02:56.2]} 3... Nc6 {[%clk
0:03:01.1]} 4. Nxe5 {[%clk 0:02:57.2]} 4... Nxe5 {[%clk 0:03:00.5]} 5. d4 {[%clk
0:02:58.8]} 5... Nc6 {[%clk 0:02:45.2]} 6. d5 {[%clk 0:02:58.8]} 6... Bb4 {[%clk
0:02:30.8]} 7. dxc6 {[%clk 0:02:45.8]} 7... Nxe4 {[%clk 0:02:28.6]} 8. Qg4
{[%clk 0:02:46.3]} 8... O-O {[%clk 0:02:19.4]} 9. Bd3 {[%clk 0:02:34.6]} 9...
dxc6 {[%clk 0:02:12.1]} 10. Qh5 {[%clk 0:02:16.4]} 10... g6 {[%clk 0:02:09.5]}
11. Qf3 {[%clk 0:02:16.8]} 11... Nxc3 {[%clk 0:02:07.8]} 12. O-O {[%clk
0:02:16.8]} 12... Nd5 {[%clk 0:02:04]} 13. c4 {[%clk 0:02:06.4]} 13... Ne7
{[%clk 0:01:51.5]} 14. Bg5 {[%clk 0:01:55.3]} 14... f6 {[%clk 0:01:42.2]} 15.
Bh6 {[%clk 0:01:49.1]} 15... Rf7 {[%clk 0:01:34.4]} 16. Rad1 {[%clk 0:01:44.3]}
16... Qe8 {[%clk 0:01:15.8]} 17. a3 {[%clk 0:01:44.6]} 17... Bd6 {[%clk
0:01:14.4]} 18. Rfe1 {[%clk 0:01:42.5]} 18... Be5 {[%clk 0:01:12.2]} 19. c5
{[%clk 0:01:29.6]} 19... Nf5 {[%clk 0:01:06.5]} 20. Bc4 {[%clk 0:00:40.5]} 20...
Nxh6 {[%clk 0:01:05.2]} 21. Bxf7+ {[%clk 0:00:11.6]} 21... Nxf7 {[%clk
0:00:44.4]} 22. Qxf6 {[%clk 0:00:12.4]} 22... Bg4 {[%clk 0:00:43.2]} 23. Qh4
{[%clk 0:00:07.7]} 23... Bxd1 {[%clk 0:00:42.2]} 0-1

[Event "*** Titled Tuesday 3|2 Blitz"]
[Site "Chess.com"]
[Date "2016.07.05"]
[Round "1"]
[White "HansCoolNiemann"]
[Black "dretch"]
[Result "0-1"]
[WhiteElo "2336"]
[BlackElo "2641"]
[TimeControl "180+2"]
[EndTime "11:07:21 PDT"]
[Termination "dretch won by checkmate"]

1. d4 {[%clk 0:02:55.8]} 1... d5 {[%clk 0:02:57.9]} 2. c4 {[%clk 0:02:56.6]}
2... c6 {[%clk 0:02:58.4]} 3. cxd5 {[%clk 0:02:57.7]} 3... cxd5 {[%clk
0:03:00.3]} 4. Nc3 {[%clk 0:02:58.9]} 4... Nc6 {[%clk 0:03:02.2]} 5. Bf4 {[%clk
0:03:00.1]} 5... Nf6 {[%clk 0:03:00.7]} 6. e3 {[%clk 0:03:00.7]} 6... Bf5 {[%clk
0:02:58.6]} 7. Qb3 {[%clk 0:03:00.1]} 7... Na5 {[%clk 0:02:58.7]} 8. Qa4+ {[%clk
0:03:00.6]} 8... Bd7 {[%clk 0:02:59.6]} 9. Qd1 {[%clk 0:03:01.9]} 9... Qb6
{[%clk 0:02:54.3]} 10. Rb1 {[%clk 0:02:51.7]} 10... e6 {[%clk 0:02:49.3]} 11.
Bd3 {[%clk 0:02:51.6]} 11... Rc8 {[%clk 0:02:41.5]} 12. Nge2 {[%clk 0:02:51.4]}
12... Nh5 {[%clk 0:02:41.9]} 13. Be5 {[%clk 0:02:51.2]} 13... Nc6 {[%clk
0:02:42.4]} 14. O-O {[%clk 0:02:49.9]} 14... Be7 {[%clk 0:02:39]} 15. Ng3 {[%clk
0:02:40.1]} 15... Nxe5 {[%clk 0:02:38.6]} 16. Nxh5 {[%clk 0:02:38.7]} 16... Nxd3
{[%clk 0:02:39.5]} 17. Qxd3 {[%clk 0:02:38.4]} 17... O-O {[%clk 0:02:40]} 18.
Rfc1 {[%clk 0:02:36.7]} 18... Rfd8 {[%clk 0:02:34.6]} 19. Nf4 {[%clk 0:02:36.6]}
19... Bd6 {[%clk 0:02:32.7]} 20. g3 {[%clk 0:02:32.7]} 20... Rc7 {[%clk
0:02:24.8]} 21. a3 {[%clk 0:02:26.5]} 21... Rdc8 {[%clk 0:02:24.5]} 22. b4
{[%clk 0:02:27.7]} 22... Rc4 {[%clk 0:02:20.9]} 23. Nce2 {[%clk 0:02:17]} 23...
Bb5 {[%clk 0:02:12.6]} 24. Qd2 {[%clk 0:02:16.1]} 24... Qa6 {[%clk 0:02:12.1]}
25. Rxc4 {[%clk 0:02:05.3]} 25... Rxc4 {[%clk 0:02:11]} 26. Nc3 {[%clk
0:02:00.8]} 26... Bd7 {[%clk 0:02:06.3]} 27. Qb2 {[%clk 0:02:00.2]} 27... Bxf4
{[%clk 0:01:51.2]} 28. gxf4 {[%clk 0:01:59.2]} 28... e5 {[%clk 0:01:51.6]} 29.
fxe5 {[%clk 0:01:42.9]} 29... Rxc3 {[%clk 0:01:49.3]} 30. Qxc3 {[%clk
0:01:38.9]} 30... Qg6+ {[%clk 0:01:50.1]} 31. Kh1 {[%clk 0:01:39.5]} 31... Qxb1+
{[%clk 0:01:49.7]} 32. Kg2 {[%clk 0:01:40.6]} 32... Qg6+ {[%clk 0:01:49.4]} 33.
Kf1 {[%clk 0:01:36.3]} 33... Bb5+ {[%clk 0:01:45.1]} 34. Ke1 {[%clk 0:01:35.1]}
34... Qg1+ {[%clk 0:01:45.9]} 35. Kd2 {[%clk 0:01:35.6]} 35... Qxf2+ {[%clk
0:01:46.6]} 36. Kc1 {[%clk 0:01:37]} 36... Qg1+ {[%clk 0:01:46.9]} 37. Kb2
{[%clk 0:01:36.7]} 37... Qxh2+ {[%clk 0:01:47.5]} 38. Kb3 {[%clk 0:01:38.6]}
38... Bc4+ {[%clk 0:01:47.1]} 39. Ka4 {[%clk 0:01:39.8]} 39... Qh3 {[%clk
0:01:46.7]} 40. b5 {[%clk 0:01:38.5]} 40... Qd7 {[%clk 0:01:47.2]} 41. Qb4
{[%clk 0:01:38.9]} 41... b6 {[%clk 0:01:45.9]} 42. e4 {[%clk 0:01:36.3]} 42...
h5 {[%clk 0:01:45.3]} 43. exd5 {[%clk 0:01:33.4]} 43... Qxd5 {[%clk 0:01:46.4]}
44. e6 {[%clk 0:01:25.3]} 44... Qxb5+ {[%clk 0:01:41.5]} 45. Qxb5 {[%clk
0:01:25.6]} 45... Bxb5+ {[%clk 0:01:43.4]} 46. Kxb5 {[%clk 0:01:26.9]} 46...
fxe6 {[%clk 0:01:45]} 47. Ka6 {[%clk 0:01:28.1]} 47... h4 {[%clk 0:01:46.1]} 48.
Kxa7 {[%clk 0:01:29.3]} 48... h3 {[%clk 0:01:47.4]} 49. Kxb6 {[%clk 0:01:31.2]}
49... h2 {[%clk 0:01:48.6]} 50. a4 {[%clk 0:01:33.1]} 50... h1=Q {[%clk
0:01:49.1]} 51. a5 {[%clk 0:01:35]} 51... Qd5 {[%clk 0:01:49.8]} 52. a6 {[%clk
0:01:36.9]} 52... Qxd4+ {[%clk 0:01:51]} 53. Kb7 {[%clk 0:01:38]} 53... g5
{[%clk 0:01:51.9]} 54. a7 {[%clk 0:01:39.9]} 54... Qxa7+ {[%clk 0:01:52.9]} 55.
Kxa7 {[%clk 0:01:40.6]} 55... g4 {[%clk 0:01:54.1]} 56. Kb6 {[%clk 0:01:41.9]}
56... g3 {[%clk 0:01:55.3]} 57. Kc6 {[%clk 0:01:43.8]} 57... g2 {[%clk
0:01:56.7]} 58. Kd6 {[%clk 0:01:45.7]} 58... g1=Q {[%clk 0:01:56.7]} 59. Kxe6
{[%clk 0:01:47.6]} 59... Qg5 {[%clk 0:01:55.3]} 60. Kd6 {[%clk 0:01:48.1]} 60...
Kf7 {[%clk 0:01:56.2]} 61. Kc6 {[%clk 0:01:49.5]} 61... Ke6 {[%clk 0:01:56.7]}
62. Kb6 {[%clk 0:01:51.4]} 62... Kd6 {[%clk 0:01:57.7]} 63. Kb7 {[%clk
0:01:52.7]} 63... Qb5+ {[%clk 0:01:58]} 64. Kc8 {[%clk 0:01:52.6]} 64... Qb2
{[%clk 0:01:57.7]} 65. Kd8 {[%clk 0:01:54.5]} 65... Qh8# {[%clk 0:01:58.8]} 0-1

[Event "*** Titled Tuesday 3|2 Blitz"]
[Site "Chess.com"]
[Date "2016.07.05"]
[Round "1"]
[White "platy3"]
[Black "hypert"]
[Result "1-0"]
[WhiteElo "2689"]
[BlackElo "2341"]
[TimeControl "180+2"]
[EndTime "11:07:41 PDT"]
[Termination "platy3 won by resignation"]

1. e4 {[%clk 0:03:01.4]} 1... c5 {[%clk 0:03:00.2]} 2. Nf3 {[%clk 0:03:02.4]}
2... e6 {[%clk 0:03:01.8]} 3. d4 {[%clk 0:03:03.8]} 3... cxd4 {[%clk 0:03:03.7]}
4. Nxd4 {[%clk 0:03:05.7]} 4... Nf6 {[%clk 0:03:04.6]} 5. Nc3 {[%clk 0:03:06.9]}
5... d6 {[%clk 0:03:06]} 6. g4 {[%clk 0:03:08.1]} 6... h6 {[%clk 0:02:59.3]} 7.
h4 {[%clk 0:03:06]} 7... Nc6 {[%clk 0:02:55.5]} 8. Rg1 {[%clk 0:03:05.9]} 8...
h5 {[%clk 0:02:54.4]} 9. gxh5 {[%clk 0:03:00.6]} 9... Nxh5 {[%clk 0:02:55]} 10.
Bg5 {[%clk 0:02:58.1]} 10... Qb6 {[%clk 0:02:55.6]} 11. Nb3 {[%clk 0:02:43.9]}
11... Bd7 {[%clk 0:02:55.9]} 12. Be2 {[%clk 0:02:40.6]} 12... Nf6 {[%clk
0:02:56.4]} 13. Qd2 {[%clk 0:02:42]} 13... a6 {[%clk 0:02:56]} 14. h5 {[%clk
0:02:26.8]} 14... Qc7 {[%clk 0:02:40.8]} 15. h6 {[%clk 0:02:18.7]} 15... Ng8
{[%clk 0:02:38.8]} 16. hxg7 {[%clk 0:02:10.5]} 16... Bxg7 {[%clk 0:02:39]} 17.
Bf4 {[%clk 0:02:08.7]} 17... Be5 {[%clk 0:02:38.8]} 18. Bxe5 {[%clk 0:02:04.3]}
18... dxe5 {[%clk 0:02:28.7]} 19. Qg5 {[%clk 0:01:49.6]} 19... Nce7 {[%clk
0:02:13.9]} 20. O-O-O {[%clk 0:01:34.8]} 20... O-O-O {[%clk 0:02:12.5]} 21. Qe3
{[%clk 0:01:35.9]} 21... Ng6 {[%clk 0:02:06]} 22. Qa7 {[%clk 0:01:31.9]} 22...
N8e7 {[%clk 0:01:54.5]} 23. Nc5 {[%clk 0:01:26.4]} 23... Nc6 {[%clk 0:01:05.4]}
24. Qa8+ {[%clk 0:01:25.6]} 24... Qb8 {[%clk 0:01:06.1]} 25. Qxb8+ {[%clk
0:01:27.1]} 25... Nxb8 {[%clk 0:00:57.9]} 26. Rd6 {[%clk 0:01:28.6]} 26... Bc6
{[%clk 0:00:54.5]} 27. Rxd8+ {[%clk 0:01:26.9]} 27... Kxd8 {[%clk 0:00:55.3]}
28. Nxe6+ {[%clk 0:01:27.8]} 28... Ke7 {[%clk 0:00:52.4]} 29. Ng7 {[%clk
0:01:29.3]} 29... Rh2 {[%clk 0:00:49.4]} 30. Nf5+ {[%clk 0:01:28.7]} 30... Kf8
{[%clk 0:00:50.1]} 31. f3 {[%clk 0:01:24.8]} 31... Nf4 {[%clk 0:00:49.9]} 32.
Bc4 {[%clk 0:01:25.7]} 32... Ne6 {[%clk 0:00:34.9]} 33. Bxe6 {[%clk 0:01:23.2]}
33... fxe6 {[%clk 0:00:35.5]} 34. Ne3 {[%clk 0:01:24.9]} 34... Nd7 {[%clk
0:00:35.2]} 35. b4 {[%clk 0:01:24.5]} 35... Rh3 {[%clk 0:00:33.4]} 36. Rf1
{[%clk 0:01:24.4]} 36... Ke7 {[%clk 0:00:33.8]} 37. a4 {[%clk 0:01:25.3]} 37...
Nf6 {[%clk 0:00:33.3]} 38. Nc4 {[%clk 0:01:22.6]} 38... Nd7 {[%clk 0:00:29.6]}
39. b5 {[%clk 0:01:23.8]} 39... axb5 {[%clk 0:00:29.3]} 40. axb5 {[%clk
0:01:25.7]} 40... Bxe4 {[%clk 0:00:26.1]} 41. Nxe4 {[%clk 0:01:22.5]} 41... Rh2
{[%clk 0:00:26.7]} 42. Ned6 {[%clk 0:01:19.8]} 1-0

[Event "*** Titled Tuesday 3|2 Blitz"]
[Site "Chess.com"]
[Date "2016.07.05"]
[Round "1"]
[White "RobertRis"]
[Black "Ksenia_Legenko"]
[Result "1-0"]
[WhiteElo "2438"]
[BlackElo "2062"]
[TimeControl "180+2"]
[EndTime "11:07:46 PDT"]
[Termination "RobertRis won by resignation"]

1. Nf3 {[%clk 0:02:59.8]} 1... d5 {[%clk 0:02:59.3]} 2. g3 {[%clk 0:02:53.8]}
2... Nf6 {[%clk 0:02:58.1]} 3. Bg2 {[%clk 0:02:55]} 3... c6 {[%clk 0:02:57.6]}
4. O-O {[%clk 0:02:54.7]} 4... Bg4 {[%clk 0:02:44.7]} 5. c4 {[%clk 0:02:52.5]}
5... e6 {[%clk 0:02:45.1]} 6. b3 {[%clk 0:02:52.8]} 6... Be7 {[%clk 0:02:43]} 7.
Bb2 {[%clk 0:02:53.9]} 7... O-O {[%clk 0:02:43.7]} 8. d3 {[%clk 0:02:55.2]} 8...
Nbd7 {[%clk 0:02:39.8]} 9. Nbd2 {[%clk 0:02:56]} 9... Qc7 {[%clk 0:02:22.6]} 10.
Qc2 {[%clk 0:02:55.5]} 10... Rac8 {[%clk 0:02:13.3]} 11. e4 {[%clk 0:02:56.2]}
11... dxe4 {[%clk 0:02:08.9]} 12. dxe4 {[%clk 0:02:56.8]} 12... e5 {[%clk
0:02:09]} 13. Nh4 {[%clk 0:02:56.2]} 13... Rcd8 {[%clk 0:02:01.8]} 14. h3 {[%clk
0:02:53.6]} 14... Be6 {[%clk 0:01:51.3]} 15. Nf5 {[%clk 0:02:50.8]} 15... Bxf5
{[%clk 0:01:51]} 16. exf5 {[%clk 0:02:51.6]} 16... Nc5 {[%clk 0:01:38.9]} 17. g4
{[%clk 0:02:47.7]} 17... Rfe8 {[%clk 0:01:38.2]} 18. Rad1 {[%clk 0:02:39.2]}
18... Nd3 {[%clk 0:01:36.4]} 19. Bc3 {[%clk 0:02:36.6]} 19... Bb4 {[%clk
0:01:32.8]} 20. Nf3 {[%clk 0:02:15]} 20... Bxc3 {[%clk 0:01:28.9]} 21. Rxd3
{[%clk 0:02:12.7]} 21... Bb4 {[%clk 0:01:04.3]} 22. Rxd8 {[%clk 0:02:04.4]}
22... Rxd8 {[%clk 0:01:03.3]} 23. c5 {[%clk 0:02:05.5]} 23... Qe7 {[%clk
0:00:57.8]} 24. Rc1 {[%clk 0:01:58.7]} 24... e4 {[%clk 0:00:56.3]} 25. Ng5
{[%clk 0:01:58.6]} 25... Rd2 {[%clk 0:00:52.7]} 26. Qc4 {[%clk 0:01:59.4]} 26...
Ba3 {[%clk 0:00:49.4]} 27. Re1 {[%clk 0:01:56.3]} 27... Qxc5 {[%clk 0:00:40.3]}
28. Qxf7+ {[%clk 0:01:56.8]} 28... Kh8 {[%clk 0:00:41]} 29. Nxe4 {[%clk
0:01:53.8]} 29... Nxe4 {[%clk 0:00:23.2]} 30. Qe8+ {[%clk 0:01:54]} 30... Qf8
{[%clk 0:00:24.8]} 31. Rxe4 {[%clk 0:01:54.8]} 31... Kg8 {[%clk 0:00:22.2]} 32.
Qe6+ {[%clk 0:01:50]} 32... Qf7 {[%clk 0:00:18.6]} 33. Qc8+ {[%clk 0:01:41.7]}
33... Bf8 {[%clk 0:00:19.3]} 34. Bf1 {[%clk 0:01:42.6]} 34... Rd7 {[%clk
0:00:18.4]} 35. Bc4 {[%clk 0:01:40.8]} 35... Rd5 {[%clk 0:00:19.7]} 36. Re8
{[%clk 0:01:36.9]} 36... h6 {[%clk 0:00:18.2]} 37. Bxd5 {[%clk 0:01:35.2]} 37...
cxd5 {[%clk 0:00:18.9]} 38. Qe6 {[%clk 0:01:36.1]} 38... d4 {[%clk 0:00:19.3]}
39. Rd8 {[%clk 0:01:32.2]} 39... d3 {[%clk 0:00:17.2]} 40. Rxd3 {[%clk
0:01:32.4]} 1-0

[Event "*** Titled Tuesday 3|2 Blitz"]
[Site "Chess.com"]
[Date "2016.07.05"]
[Round "1"]
[White "mortalbovine"]
[Black "AdamHunt1"]
[Result "0-1"]
[WhiteElo "1613"]
[BlackElo "2371"]
[TimeControl "180+2"]
[EndTime "11:07:50 PDT"]
[Termination "AdamHunt1 won by checkmate"]

1. e4 {[%clk 0:03:01.9]} 1... c5 {[%clk 0:02:48.3]} 2. d4 {[%clk 0:03:02.5]}
2... cxd4 {[%clk 0:02:38.8]} 3. c3 {[%clk 0:03:03.8]} 3... dxc3 {[%clk
0:02:39.6]} 4. Nxc3 {[%clk 0:03:05]} 4... Nc6 {[%clk 0:02:39.8]} 5. Nf3 {[%clk
0:03:06.2]} 5... e6 {[%clk 0:02:39.1]} 6. Bf4 {[%clk 0:03:06.3]} 6... Bb4 {[%clk
0:02:37.2]} 7. Bd3 {[%clk 0:03:02.4]} 7... Nge7 {[%clk 0:02:37.2]} 8. O-O {[%clk
0:03:03.1]} 8... Ng6 {[%clk 0:02:37.8]} 9. Bg3 {[%clk 0:03:02.5]} 9... Bxc3
{[%clk 0:02:38.7]} 10. bxc3 {[%clk 0:03:04.4]} 10... d6 {[%clk 0:02:35.2]} 11.
Qe2 {[%clk 0:03:02.7]} 11... O-O {[%clk 0:02:35.3]} 12. Nd4 {[%clk 0:03:03.2]}
12... e5 {[%clk 0:02:34.7]} 13. Nb3 {[%clk 0:02:56.5]} 13... Be6 {[%clk
0:02:34.6]} 14. Rfd1 {[%clk 0:02:55.8]} 14... Rc8 {[%clk 0:02:33.3]} 15. Rac1
{[%clk 0:02:47.9]} 15... Qe7 {[%clk 0:02:32.8]} 16. Bc4 {[%clk 0:02:21.8]} 16...
Bxc4 {[%clk 0:02:10.1]} 17. Qxc4 {[%clk 0:02:23.7]} 17... Nd4 {[%clk 0:02:11.2]}
18. Qd3 {[%clk 0:02:18.9]} 18... Nxb3 {[%clk 0:02:12.2]} 19. axb3 {[%clk
0:02:20.8]} 19... Rfd8 {[%clk 0:02:12.4]} 20. b4 {[%clk 0:02:16.3]} 20... Qe6
{[%clk 0:02:07.8]} 21. c4 {[%clk 0:02:10.2]} 21... Ne7 {[%clk 0:02:08.7]} 22. c5
{[%clk 0:02:08.2]} 22... d5 {[%clk 0:02:09.8]} 23. exd5 {[%clk 0:02:04.7]} 23...
Rxd5 {[%clk 0:02:10]} 24. Qb5 {[%clk 0:02:03]} 24... Rcd8 {[%clk 0:02:08.2]} 25.
Re1 {[%clk 0:01:56.4]} 25... R8d7 {[%clk 0:01:48.7]} 26. Qa4 {[%clk 0:01:44.1]}
26... a6 {[%clk 0:01:46.9]} 27. Qc2 {[%clk 0:01:29.5]} 27... Nc6 {[%clk
0:01:45.5]} 28. Qc3 {[%clk 0:01:22.7]} 28... Rd3 {[%clk 0:01:42.7]} 29. Qb2
{[%clk 0:01:15.8]} 29... Rd2 {[%clk 0:01:43.1]} 30. Qc3 {[%clk 0:01:15.5]} 30...
R7d3 {[%clk 0:01:43.3]} 31. Qa1 {[%clk 0:01:10.2]} 31... f6 {[%clk 0:01:39.9]}
32. b5 {[%clk 0:01:06.5]} 32... axb5 {[%clk 0:01:26.7]} 33. Qa8+ {[%clk
0:01:06.9]} 33... Nd8 {[%clk 0:01:27.8]} 34. Bf4 {[%clk 0:00:57]} 34... Ra2
{[%clk 0:01:24]} 35. Qb8 {[%clk 0:00:54.9]} 35... b4 {[%clk 0:01:21.8]} 36. Red1
{[%clk 0:00:52.7]} 36... Qd5 {[%clk 0:01:15]} 37. Rxd3 {[%clk 0:00:41.5]} 37...
Qxd3 {[%clk 0:01:15.9]} 38. Be3 {[%clk 0:00:36.5]} 38... b3 {[%clk 0:01:17.1]}
39. c6 {[%clk 0:00:21.8]} 39... b2 {[%clk 0:01:09.3]} 40. Rf1 {[%clk 0:00:11.3]}
40... Qxf1+ {[%clk 0:01:07.9]} 41. Kxf1 {[%clk 0:00:13.2]} 41... b1=Q+ {[%clk
0:01:08.6]} 42. Bc1 {[%clk 0:00:14.5]} 42... Qxc1# {[%clk 0:01:09.8]} 0-1